lending/lending_fUSD_20250210
["ID","MTS","AMOUNT","RATE_DAILY","PERIOD"]
[352623687,1739204906877,375.46342295,7.888e-05,2]
[352623688,1739204921814,6978.3247206,8e-05,2]
[352623698,1739205032159,-300.0,8.292e-05,2]
[352623700,1739205032169,-950.96724705,8.293e-05,2]
[352623701,1739205032268,-2820.812805,8.293e-05,2]
[352623702,1739205032377,-2188.81507441,8.293e-05,2]
[352623703,1739205032592,-3688.61854252,8.293e-05,2]
[352623704,1739205032603,-695.27,8.293e-05,2]
[352623705,1739205032614,-827.5753,8.699e-05,2]
[352623718,1739205032766,-2424.3959008,9e-05,2]
[352623720,1739205032780,-420.0,9.121e-05,2]
[352623722,1739205032791,-314.35,9.886e-05,2]
[352623724,1739205032800,-150.0,9.888e-05,2]
[352623726,1739205032809,-150.0,9.888e-05,2]
[352623728,1739205032819,-165.01,9.92e-05,2]
[352623730,1739205032829,-150.0,9.979e-05,2]
[352623732,1739205032838,-416695.02086959,9.98e-05,2]
[352623734,1739205032847,-502.55641872,9.98e-05,2]
[352623736,1739205032857,-679.87,9.98e-05,2]
[352623738,1739205032867,-406.11736468,9.999e-05,2]
[352623740,1739205032876,-500.0,0.0001,2]
[352623742,1739205032886,-461577.84709516,0.0001,2]
[352623960,1739205038114,-1198.35190237,0.0001,2]
[352623961,1739205038134,-500.0,0.0001,2]
[352623962,1739205038161,-607.97363732,0.0001,2]
[352623963,1739205038173,-2862.36967122,0.0001,2]
[352623964,1739205038185,-1850.9311271,0.0001,2]
[352623965,1739205038197,-1155.0,0.0001,2]
[352623966,1739205038252,-19967.29063338,0.0001,2]
[352623967,1739205038263,-6811.1863766,0.0001,2]
[352623968,1739205038307,-9315.63957483,0.0001,2]
[352623969,1739205038319,-7697.54855699,0.0001,2]
[352623970,1739205038329,-365.77525998,0.0001,2]
[352623971,1739205038339,-562.26,0.0001003,2]
[352623972,1739205038349,-515.0,0.00010033,2]
[352623973,1739205038359,-200.0,0.00010104,2]
[352623975,1739205038368,-1000.0,0.00010111,2]
[352623977,1739205038378,-788.98,0.00010124,2]
[352623979,1739205038387,-341.1,0.00010137,2]
[352623981,1739205038397,-490.6,0.00010247,2]
[352623983,1739205038406,-695.27,0.00010557,2]
[352623985,1739205038415,-1130.49,0.00010557,2]
[352623987,1739205038424,-36862.1876132,0.000108,2]
[352623989,1739205038433,-164.08037533,0.000108,2]
[352623991,1739205038443,-300.0,0.00010829,2]
[352623993,1739205038452,-4000.0,0.0001089,2]
[352623995,1739205038461,-6339.71459844,0.00010898,2]
[352623997,1739205038471,-183.01984786,0.00010898,2]
[352623998,1739205038481,-150.5182465,0.00010898,2]
[352624000,1739205038493,-159.31493759,0.00010898,2]
[352624002,1739205038502,-6339.71459842,0.00010899,2]
[352624004,1739205038512,-159.31493759,0.00010899,2]
[352624007,1739205038522,-500.9,0.000109,2]
[352624009,1739205038532,-620.12,0.000109,2]
[352624012,1739205038541,-261.00007548,0.000109,2]
[352624014,1739205038551,-162.09347596,0.000109,2]
[352624016,1739205038561,-162.09347596,0.000109,2]
[352624018,1739205038570,-30502.88947625,0.000109,2]
[352624019,1739205038580,-502.55641872,0.000109,2]
[352624022,1739205038590,-6339.71459842,0.000109,2]
[352624024,1739205038601,-183.01984786,0.000109,2]
[352624026,1739205038611,-159.31493759,0.000109,2]
[352624028,1739205038621,-701.21241396,0.00010957,2]
[352624030,1739205038631,-494.42,0.00010957,2]
[352624032,1739205038640,-508.47,0.00010958,2]
[352624034,1739205038649,-500.0,0.00010958,2]
[352624036,1739205038659,-500.0,0.00010958,2]
[352624038,1739205038668,-500.0,0.00010958,2]
[352624040,1739205038677,-500.0,0.00010958,2]
[352624042,1739205038686,-500.0,0.00010958,2]
[352624044,1739205038697,-500.0,0.00010958,2]
[352624045,1739205038708,-500.0,0.00010958,2]
[352624047,1739205038718,-500.0,0.00010958,2]
[352624049,1739205038733,-500.0,0.00010958,2]
[352624051,1739205038747,-500.0,0.00010958,2]
[352624053,1739205038756,-500.0,0.00010958,2]
[352624055,1739205038765,-500.0,0.00010958,2]
[352624057,1739205038776,-1355.31,0.00010958,2]
[352624059,1739205038785,-500.0,0.00010958,2]
[352624061,1739205038794,-500.0,0.00010958,2]
[352624063,1739205038804,-500.0,0.00010958,2]
[352624065,1739205038813,-500.0,0.00010958,2]
[352624068,1739205038823,-500.0,0.00010958,2]
[352624069,1739205038832,-500.0,0.00010958,2]
[352624072,1739205038842,-500.0,0.00010958,2]
[352624074,1739205038852,-500.0,0.00010958,2]
[352624076,1739205038862,-560.11,0.00010958,2]
[352624078,1739205038871,-500.0,0.00010958,2]
[352624080,1739205038880,-500.0,0.00010958,2]
[352624082,1739205038890,-500.0,0.00010958,2]
[352624084,1739205038899,-500.0,0.00010958,2]
[352624086,1739205038909,-500.0,0.00010958,2]
[352624088,1739205038919,-500.0,0.00010958,2]
[352624089,1739205038929,-500.0,0.00010958,2]
[352624091,1739205038938,-500.0,0.00010958,2]
[352624093,1739205038948,-500.0,0.00010958,2]
[352624095,1739205038958,-500.0,0.00010958,2]
[352624098,1739205038969,-500.0,0.00010958,2]
[352624100,1739205038981,-500.0,0.00010958,2]
[352624102,1739205038992,-500.0,0.00010958,2]
[352624104,1739205039002,-500.0,0.00010958,2]
[352624106,1739205039012,-500.0,0.00010958,2]
[352624108,1739205039022,-500.0,0.00010958,2]
[352624109,1739205039032,-500.0,0.00010958,2]
[352624111,1739205039042,-500.0,0.00010958,2]
[352624113,1739205039051,-500.0,0.00010958,2]
[352624115,1739205039061,-500.0,0.00010958,2]
[352624117,1739205039071,-500.0,0.00010958,2]
[352624119,1739205039081,-500.0,0.00010958,2]
[352624121,1739205039090,-500.0,0.00010958,2]
[352624123,1739205039101,-500.0,0.00010958,2]
[352624125,1739205039111,-500.0,0.00010958,2]
[352624127,1739205039120,-500.0,0.00010958,2]
[352624129,1739205039130,-500.0,0.00010958,2]
[352624131,1739205039140,-500.0,0.00010958,2]
[352624133,1739205039149,-500.0,0.00010958,2]
[352624135,1739205039160,-500.0,0.00010958,2]
[352624138,1739205039173,-500.0,0.00010958,2]
[352624140,1739205039184,-500.0,0.00010958,2]
[352624142,1739205039195,-500.0,0.00010958,2]
[352624144,1739205039206,-506.99388159,0.00010958,2]
[352624146,1739205039215,-500.0,0.00010958,2]
[352624148,1739205039224,-500.0,0.00010958,2]
[352624150,1739205039233,-500.0,0.00010958,2]
[352624152,1739205039244,-500.0,0.00010958,2]
[352624154,1739205039253,-500.0,0.00010958,2]
[352624156,1739205039263,-500.0,0.00010958,2]
[352624158,1739205039272,-500.0,0.00010958,2]
[352624160,1739205039282,-500.0,0.00010958,2]
[352624162,1739205039291,-500.0,0.00010958,2]
[352624164,1739205039301,-500.0,0.00010958,2]
[352624166,1739205039311,-500.0,0.00010958,2]
[352624168,1739205039319,-500.0,0.00010958,2]
[352624170,1739205039329,-500.0,0.00010958,2]
[352624172,1739205039338,-500.0,0.00010958,2]
[352624174,1739205039347,-500.0,0.00010958,2]
[352624176,1739205039357,-500.0,0.00010958,2]
[352624178,1739205039368,-500.0,0.00010958,2]
[352624180,1739205039377,-500.0,0.00010958,2]
[352624182,1739205039387,-500.0,0.00010958,2]
[352624184,1739205039397,-500.0,0.00010958,2]
[352624186,1739205039406,-711.13,0.00010958,2]
[352624188,1739205039415,-657.16,0.00010958,2]
[352624190,1739205039424,-500.0,0.00010958,2]
[352624192,1739205039434,-581.33,0.00010958,2]
[352624194,1739205039443,-691.15,0.00010958,2]
[352624196,1739205039452,-500.0,0.00010958,2]
[352624198,1739205039461,-1264.73,0.00010958,2]
[352624200,1739205039471,-500.0,0.00010958,2]
[352624202,1739205039480,-500.0,0.00010958,2]
[352624204,1739205039491,-500.0,0.00010958,2]
[352624206,1739205039501,-1377.04,0.00010958,2]
[352624208,1739205039510,-500.0,0.00010958,2]
[352624210,1739205039520,-1082.16,0.00010958,2]
[352624212,1739205039529,-500.0,0.00010958,2]
[352624214,1739205039538,-1096.42,0.00010958,2]
[352624216,1739205039547,-500.0,0.00010958,2]
[352624218,1739205039556,-1249.36,0.00010958,2]
[352624219,1739205039567,-500.0,0.00010958,2]
[352624222,1739205039576,-2146.39,0.00010958,2]
[352624223,1739205039585,-500.0,0.00010958,2]
[352624226,1739205039594,-1938.46,0.00010958,2]
[352624228,1739205039604,-530.83,0.00010958,2]
[352624230,1739205039614,-790.52,0.00010958,2]
[352624232,1739205039623,-500.0,0.00010958,2]
[352624233,1739205039633,-629.85,0.00010958,2]
[352624236,1739205039643,-604.0,0.00010958,2]
[352624238,1739205039652,-500.0,0.00010958,2]
[352624239,1739205039661,-1672.67,0.00010958,2]
[352624241,1739205039670,-758.3,0.00010958,2]
[352624243,1739205039679,-500.0,0.00010958,2]
[352624245,1739205039689,-667.81,0.00010958,2]
[352624247,1739205039701,-500.0,0.00010958,2]
[352624249,1739205039714,-500.0,0.00010958,2]
[352624252,1739205039724,-500.0,0.00010958,2]
[352624254,1739205039735,-500.0,0.00010958,2]
[352624256,1739205039746,-500.0,0.00010958,2]
[352624258,1739205039755,-500.0,0.00010958,2]
[352624260,1739205039764,-1464.52,0.00010958,2]
[352624262,1739205039775,-500.0,0.00010958,2]
[352624264,1739205039784,-500.0,0.00010958,2]
[352624266,1739205039795,-500.0,0.00010958,2]
[352624268,1739205039805,-500.0,0.00010958,2]
[352624270,1739205039814,-500.0,0.00010958,2]
[352624271,1739205039824,-500.0,0.00010958,2]
[352624273,1739205039835,-500.0,0.00010958,2]
[352624275,1739205039845,-500.0,0.00010958,2]
[352624277,1739205039855,-2683.93,0.00010958,2]
[352624279,1739205039865,-786.14,0.00010958,2]
[352624281,1739205039875,-500.0,0.00010958,2]
[352624283,1739205039884,-156.273019,0.00010958,2]
[352624285,1739205039894,-500.0,0.00010958,2]
[352624287,1739205039905,-500.0,0.00010958,2]
[352624289,1739205039915,-500.0,0.00010958,2]
[352624292,1739205039924,-500.0,0.00010958,2]
[352624294,1739205039934,-500.0,0.00010958,2]
[352624307,1739205040054,-500.0,0.00010958,2]
[352624310,1739205040064,-500.0,0.00010958,2]
[352624313,1739205040073,-500.0,0.00010958,2]
[352624315,1739205040082,-1922.99,0.00010958,2]
[352624317,1739205040092,-500.0,0.00010958,2]
[352624319,1739205040102,-500.0,0.00010958,2]
[352624321,1739205040111,-500.0,0.00010959,2]
[352624323,1739205040121,-2000.0,0.00010959,2]
[352624325,1739205040130,-500.0,0.00010959,2]
[352624327,1739205040140,-200.0,0.00010959,2]
[352624329,1739205040149,-406.69797652,0.00010973,2]
[352624331,1739205040159,-150.0,0.00010977,2]
[352624333,1739205040168,-1204.43073554,0.00010988,2]
[352624335,1739205040178,-1204.43073554,0.00010988,2]
[352624337,1739205040187,-1204.43073554,0.0001099,2]
[352624339,1739205040196,-300.0,0.00010998,2]
[352624341,1739205040205,-4438738.73510274,0.00010998,3]
[352624343,1739205040214,-596.05,0.00010998,2]
[352624345,1739205040224,-544.64,0.00010998,2]
[352624347,1739205040233,-500.0,0.00010998,2]
[352624349,1739205040244,-500.0,0.00010998,2]
[352624351,1739205040254,-521.98112458,0.00010998,2]
[352624353,1739205040267,-500.0,0.00010998,2]
[352624355,1739205040277,-500.0,0.00010998,2]
[352624357,1739205040287,-500.0,0.00010998,2]
[352624359,1739205040296,-500.0,0.00010998,2]
[352624361,1739205040305,-599.96646097,0.00010998,2]
[352624363,1739205040314,-500.0,0.00010998,2]
[352624364,1739205040324,-500.0,0.00010998,2]
[352624365,1739205040333,-500.0,0.00010998,2]
[352624366,1739205040342,-500.0,0.00010998,2]
[352624367,1739205040351,-500.0,0.00010998,2]
[352624368,1739205040360,-500.0,0.00010998,2]
[352624369,1739205040369,-500.0,0.00010998,2]
[352624370,1739205040378,-558.69,0.00010998,2]
[352624371,1739205040387,-500.0,0.00010998,2]
[352624372,1739205040397,-708.88,0.00010998,2]
[352624373,1739205040406,-596.23,0.00010998,2]
[352624374,1739205040415,-500.0,0.00010998,2]
[352624376,1739205040424,-500.0,0.00010998,2]
[352624378,1739205040433,-500.0,0.00010998,2]
[352624380,1739205040442,-500.0,0.00010998,2]
[352624382,1739205040452,-500.0,0.00010998,2]
[352624384,1739205040462,-500.0,0.00010998,2]
[352624386,1739205040471,-500.0,0.00010998,2]
[352624388,1739205040480,-500.0,0.00010998,2]
[352624390,1739205040490,-500.0,0.00010998,2]
[352624392,1739205040500,-500.0,0.00010998,2]
[352624394,1739205040509,-500.0,0.00010998,2]
[352624396,1739205040519,-500.0,0.00010998,2]
[352624398,1739205040528,-500.0,0.00010998,2]
[352624400,1739205040538,-500.0,0.00010998,2]
[352624402,1739205040547,-673.18,0.00010998,2]
[352624404,1739205040556,-500.993423,0.00010998,2]
[352624406,1739205040566,-529.24,0.00010998,2]
[352624408,1739205040577,-948.49515,0.00010998,2]
[352624410,1739205040588,-500.0,0.00010998,2]
[352624412,1739205040598,-988.906768,0.00010998,2]
[352624414,1739205040607,-500.0,0.00010998,2]
[352624416,1739205040619,-155.689012,0.00010998,2]
[352624417,1739205040628,-500.0,0.00010998,2]
[352624419,1739205040638,-500.0,0.00010998,2]
[352624421,1739205040647,-500.0,0.00010998,2]
[352624423,1739205040657,-500.0,0.00010998,2]
[352624425,1739205040666,-500.0,0.00010998,2]
[352624427,1739205040676,-500.0,0.00010998,2]
[352624429,1739205040686,-500.0,0.00010998,2]
[352624431,1739205040698,-500.0,0.00010998,2]
[352624433,1739205040707,-500.24752449,0.00010998,2]
[352624435,1739205040717,-522.17900932,0.00010998,2]
[352624437,1739205040726,-500.0,0.00010998,2]
[352624439,1739205040736,-500.0,0.00010998,2]
[352624441,1739205040750,-500.22824734,0.00010998,2]
[352624443,1739205040759,-500.0,0.00010998,2]
[352624445,1739205040768,-645.64316033,0.00010998,2]
[352624447,1739205040778,-500.0,0.00010998,2]
[352624449,1739205040788,-500.0,0.00010998,2]
[352624451,1739205040797,-500.0,0.00010998,2]
[352624453,1739205040807,-427.75087528,0.00010998,2]
[352624455,1739205040816,-500.0,0.00010998,2]
[352624457,1739205040825,-500.0,0.00010998,2]
[352624459,1739205040835,-500.0,0.00010998,2]
[352624461,1739205040844,-500.0,0.00010998,2]
[352624463,1739205040853,-553.99,0.00010998,2]
[352624465,1739205040863,-500.0,0.00010998,2]
[352624467,1739205040872,-500.51145787,0.00010998,2]
[352624469,1739205040882,-500.0,0.00010998,2]
[352624471,1739205040891,-504.82758556,0.00010998,2]
[352624473,1739205040900,-500.0,0.00010998,2]
[352624475,1739205040910,-500.0,0.00010998,2]
[352624477,1739205040919,-521.68,0.00010998,2]
[352624479,1739205040931,-500.0,0.00010998,2]
[352624481,1739205040941,-500.23960122,0.00010998,2]
[352624483,1739205040950,-500.0,0.00010998,2]
[352624485,1739205040960,-500.0,0.00010998,2]
[352624487,1739205040969,-690.84,0.00010998,2]
[352624489,1739205040978,-500.5149591,0.00010998,2]
[352624491,1739205040991,-500.0,0.00010998,2]
[352624493,1739205041000,-734.56,0.00010998,2]
[352624496,1739205041011,-500.0,0.00010998,2]
[352624497,1739205041020,-500.0,0.00010998,2]
[352624499,1739205041029,-500.2079928,0.00010998,2]
[352624501,1739205041039,-501.08838633,0.00010998,2]
[352624503,1739205041048,-500.0,0.00010998,2]
[352624505,1739205041058,-500.0,0.00010998,2]
[352624507,1739205041067,-500.0,0.00010998,2]
[352624509,1739205041077,-500.91694562,0.00010998,2]
[352624511,1739205041086,-157.046621,0.00010998,2]
[352624513,1739205041096,-500.0,0.00010998,2]
[352624516,1739205041107,-733.86,0.00010998,2]
[352624517,1739205041116,-500.0,0.00010998,2]
[352624520,1739205041126,-501.49809337,0.00010998,2]
[352624521,1739205041136,-500.0,0.00010998,2]
[352624523,1739205041146,-500.26949467,0.00010998,2]
[352624526,1739205041157,-886.47,0.00010998,2]
[352624527,1739205041168,-500.0,0.00010998,2]
[352624529,1739205041178,-500.0,0.00010998,2]
[352624532,1739205041189,-583.13844639,0.00010998,2]
[352624533,1739205041199,-155.41622,0.00010998,2]
[352624535,1739205041209,-500.0,0.00010998,2]
[352624537,1739205041218,-500.0,0.00010998,2]
[352624539,1739205041228,-500.0,0.00010998,2]
[352624541,1739205041237,-605.39919936,0.00010998,2]
[352624543,1739205041250,-500.18333457,0.00010998,2]
[352624545,1739205041260,-614.87,0.00010998,2]
[352624547,1739205041271,-500.0,0.00010998,2]
[352624549,1739205041281,-726.06,0.00010998,2]
[352624551,1739205041291,-155.290179,0.00010998,2]
[352624553,1739205041300,-500.0,0.00010998,2]
[352624556,1739205041310,-500.69719782,0.00010998,2]
[352624558,1739205041320,-500.0,0.00010998,2]
[352624560,1739205041331,-500.85420562,0.00010998,2]
[352624562,1739205041340,-500.0,0.00010998,2]
[352624563,1739205041350,-500.0,0.00010998,2]
[352624565,1739205041359,-712.93,0.00010998,2]
[352624567,1739205041368,-504.43781728,0.00010998,2]
[352624569,1739205041378,-500.0,0.00010998,2]
[352624572,1739205041388,-500.0,0.00010998,2]
[352624574,1739205041398,-500.0,0.00010998,2]
[352624576,1739205041407,-539.18351468,0.00010998,2]
[352624578,1739205041417,-500.0,0.00010998,2]
[352624580,1739205041427,-501.3700236,0.00010998,2]
[352624582,1739205041437,-500.0,0.00010998,2]
[352624584,1739205041446,-500.0,0.00010998,2]
[352624585,1739205041455,-500.0,0.00010998,2]
[352624587,1739205041465,-500.0,0.00010998,2]
[352624589,1739205041474,-500.0,0.00010998,2]
[352624591,1739205041483,-500.0,0.00010998,2]
[352624593,1739205041495,-500.0,0.00010998,2]
[352624595,1739205041504,-500.0,0.00010998,2]
[352624597,1739205041514,-788.39,0.00010998,2]
[352624598,1739205041524,-501.351091,0.00010998,2]
[352624600,1739205041534,-500.0,0.00010998,2]
[352624602,1739205041544,-500.0,0.00010998,2]
[352624604,1739205041553,-628.3,0.00010998,2]
[352624606,1739205041563,-1034.18,0.00010998,2]
[352624607,1739205041573,-500.0,0.00010998,2]
[352624609,1739205041583,-745.42,0.00010998,2]
[352624611,1739205041592,-500.0,0.00010998,2]
[352624613,1739205041601,-500.0,0.00010998,2]
[352624614,1739205041611,-461.11541533,0.00010998,2]
[352624616,1739205041621,-819.12,0.00010998,2]
[352624618,1739205041630,-500.0,0.00010998,2]
[352624620,1739205041640,-1003.75,0.00010998,2]
[352624621,1739205041649,-730.96,0.00010998,2]
[352624623,1739205041659,-524.32,0.00010998,2]
[352624625,1739205041669,-726.77,0.00010998,2]
[352624627,1739205041678,-505.88,0.00010998,2]
[352624628,1739205041688,-500.0,0.00010998,2]
[352624630,1739205041699,-500.0,0.00010998,2]
[352624632,1739205041715,-500.0,0.00010998,2]
[352624634,1739205041725,-500.0,0.00010998,2]
[352624636,1739205041735,-500.0,0.00010998,2]
[352624647,1739205041854,-500.0,0.00010998,2]
[352624649,1739205041864,-190.74,0.00010998,2]
[352624651,1739205041873,-500.0,0.00010998,2]
[352624653,1739205041883,-975.73,0.00010998,2]
[352624654,1739205041893,-612.86,0.00010998,2]
[352624656,1739205041902,-679.23,0.00010998,2]
[352624658,1739205041912,-644.45,0.00010998,2]
[352624660,1739205041921,-500.0,0.00010998,2]
[352624661,1739205041931,-1989.3,0.00010998,2]
[352624663,1739205041940,-500.0,0.00010998,2]
[352624665,1739205041950,-500.0,0.00010998,2]
[352624667,1739205041960,-500.0,0.00010998,2]
[352624669,1739205041969,-500.0,0.00010998,2]
[352624671,1739205041978,-500.0,0.00010998,2]
[352624673,1739205041988,-500.0,0.00010998,2]
[352624674,1739205041998,-500.0,0.00010998,2]
[352624676,1739205042008,-500.4979179,0.00010998,2]
[352624678,1739205042017,-694.28,0.00010998,2]
[352624680,1739205042026,-653.94,0.00010998,2]
[352624681,1739205042036,-827.03,0.00010998,2]
[352624683,1739205042046,-500.0,0.00010998,2]
[352624685,1739205042055,-500.0,0.00010998,2]
[352624687,1739205042065,-500.0,0.00010998,2]
[352624689,1739205042074,-500.0,0.00010998,2]
[352624690,1739205042083,-500.0,0.00010998,2]
[352624692,1739205042092,-500.0,0.00010998,2]
[352624694,1739205042103,-2042.37,0.00010998,2]
[352624696,1739205042113,-851.49,0.00010998,2]
[352624698,1739205042122,-500.0,0.00010998,2]
[352624700,1739205042132,-500.0,0.00010998,2]
[352624702,1739205042141,-517.04224776,0.00010998,2]
[352624704,1739205042151,-932.0,0.00010998,2]
[352624706,1739205042160,-501.88310831,0.00010998,2]
[352624707,1739205042170,-997.03,0.00010998,2]
[352624709,1739205042179,-1088.27,0.00010998,2]
[352624711,1739205042188,-501.55412631,0.00010998,2]
[352624713,1739205042197,-500.0,0.00010998,2]
[352624715,1739205042207,-2235.23,0.00010998,2]
[352624717,1739205042216,-997.02,0.00010998,2]
[352624718,1739205042226,-500.0,0.00010998,2]
[352624720,1739205042235,-503.51767238,0.00010998,2]
[352624722,1739205042246,-500.0,0.00010998,2]
[352624724,1739205042255,-466.81741332,0.00010998,2]
[352624726,1739205042264,-1453.07,0.00010998,2]
[352624728,1739205042274,-1053.49,0.00010998,2]
[352624729,1739205042284,-1253.16,0.00010998,2]
[352624731,1739205042293,-503.13803656,0.00010998,2]
[352624733,1739205042302,-500.0,0.00010998,2]
[352624735,1739205042311,-500.0,0.00010998,2]
[352624737,1739205042321,-500.0,0.00010998,2]
[352624739,1739205042329,-500.0,0.00010998,2]
[352624740,1739205042339,-794.5,0.00010998,2]
[352624742,1739205042349,-1094.71,0.00010998,2]
[352624744,1739205042358,-797.18,0.00010998,2]
[352624746,1739205042367,-3937.59,0.00010998,2]
[352624748,1739205042376,-505.45188928,0.00010998,2]
[352624749,1739205042386,-871.05,0.00010998,2]
[352624751,1739205042395,-500.0,0.00010998,2]
[352624753,1739205042404,-500.0,0.00010998,2]
[352624755,1739205042413,-2603.45,0.00010998,2]
[352624757,1739205042422,-1263.53,0.00010998,2]
[352624759,1739205042432,-589.5,0.00010998,2]
[352624761,1739205042441,-500.0,0.00010998,2]
[352624762,1739205042450,-155.111538,0.00010998,2]
[352624764,1739205042460,-500.0,0.00010998,2]
[352624766,1739205042469,-500.0,0.00010998,2]
[352624768,1739205042478,-933.77,0.00010998,2]
[352624770,1739205042487,-500.0,0.00010998,2]
[352624772,1739205042497,-1747.84,0.00010998,2]
[352624773,1739205042506,-747.87,0.00010998,2]
[352624775,1739205042515,-1143.93,0.00010998,2]
[352624777,1739205042524,-500.0,0.00010998,2]
[352624779,1739205042533,-155.416218,0.00010998,2]
[352624781,1739205042542,-501.59665778,0.00010998,2]
[352624783,1739205042551,-2834.58,0.00010998,2]
[352624784,1739205042560,-500.0,0.00010998,2]
[352624786,1739205042569,-500.0,0.00010998,2]
[352624788,1739205042579,-500.0,0.00010998,2]
[352624790,1739205042589,-513.18977009,0.00010998,2]
[352624792,1739205042598,-1822.48,0.00010998,2]
[352624794,1739205042607,-511.65760343,0.00010998,2]
[352624795,1739205042618,-500.0,0.00010998,2]
[352624797,1739205042628,-559.25,0.00010998,2]
[352624799,1739205042637,-500.0,0.00010998,2]
[352624801,1739205042646,-500.0,0.00010998,2]
[352624803,1739205042656,-1122.71,0.00010998,2]
[352624805,1739205042665,-500.59051917,0.00010998,2]
[352624807,1739205042674,-757.64,0.00010998,2]
[352624809,1739205042683,-500.0,0.00010998,2]
[352624811,1739205042693,-501.80803662,0.00010998,2]
[352624813,1739205042707,-505.13054003,0.00010998,2]
[352624815,1739205042716,-530.46,0.00010998,2]
[352624817,1739205042726,-500.0,0.00010998,2]
[352624819,1739205042735,-509.32367822,0.00010998,2]
[352624820,1739205042747,-500.0,0.00010998,2]
[352624821,1739205042756,-1833.03,0.00010998,2]
[352624822,1739205042766,-1240.27,0.00010998,2]
[352624823,1739205042776,-500.0,0.00010998,2]
[352624824,1739205042785,-1397.84,0.00010998,2]
[352624825,1739205042795,-505.05047978,0.00010998,2]
[352624826,1739205042804,-500.0,0.00010998,2]
[352624827,1739205042813,-500.0,0.00010998,2]
[352624828,1739205042822,-857.67,0.00010998,2]
[352624829,1739205042831,-737.04,0.00010998,2]
[352624830,1739205042841,-500.0,0.00010998,2]
[352624832,1739205042850,-1844.44,0.00010998,2]
[352624833,1739205042863,-501.39093881,0.00010998,2]
[352624835,1739205042873,-3978.19,0.00010998,2]
[352624836,1739205042883,-379.09154305,0.00010998,2]
[352624838,1739205042892,-339.32455029,0.00010998,2]
[352624840,1739205042902,-500.0,0.00010998,2]
[352624842,1739205042913,-500.0,0.00010998,2]
[352624844,1739205042922,-548.58,0.00010998,2]
[352624846,1739205042932,-500.0,0.00010998,2]
[352624848,1739205042943,-1346.01,0.00010998,2]
[352624850,1739205042952,-500.0,0.00010998,2]
[352624852,1739205042961,-500.90546476,0.00010998,2]
[352624854,1739205042971,-500.0,0.00010998,2]
[352624856,1739205042980,-833.86,0.00010998,2]
[352624858,1739205042990,-681.85,0.00010998,2]
[352624860,1739205043000,-500.0,0.00010998,2]
[352624862,1739205043009,-502.3,0.00010998,2]
[352624864,1739205043018,-500.0,0.00010998,2]
[352624866,1739205043027,-500.0,0.00010998,2]
[352624868,1739205043037,-286.80530839,0.00010998,2]
[352624872,1739205043046,-1001.92,0.00010998,2]
[352624876,1739205043055,-500.0,0.00010998,2]
[352624880,1739205043065,-500.0,0.00010998,2]
[352624884,1739205043074,-500.0,0.00010998,2]
[352624888,1739205043083,-300.0,0.00010998,2]
[352624892,1739205043092,-300.0,0.00010999,2]